Cogmind - Beta 15 @@@ ROGUE MODE // 2025.05.24 @ 01:10:37 Player: jumpy Result: Smashed by cave-in Performance ------------- Evolutions (1) 500 Regions Visited (5) 1000 Robots Destroyed (41) 205 Value Destroyed (863) 863 Prototype IDs (1) 20 Alien Tech Used (0) 0 Bonus (0) 0 TOTAL SCORE: 2588 Bonus ------- None Cogmind --------- Core Integrity 0/400 Matter 300/300 Energy 280/280 System Corruption 24% Temperature Cool (0) Movement Treading (160) Location -9/Exiles Parts ------- > --- POWER (1) -------- Cooled Ion Engine > --- PROPULSION (2) --- Light Treads > --- UTILITY (4) ------ (None) > --- WEAPON (2) ------- (None) > --- INVENTORY (5) ---- Light Treads Improved Targeting Computer Improved Targeting Computer Beam Rifle Mining Laser Peak State ------------ > --- POWER ------------ Cooled Ion Engine > --- PROPULSION ------- Light Treads Light Treads > --- UTILITY ---------- Large Storage Unit Signal Interpreter Improved Terrain Scanner Seismic Detector > --- WEAPON ----------- Grenade Launcher Great Maul > --- INVENTORY -------- Light Treads Improved Targeting Computer Improved Targeting Computer Beam Rifle Spread Laser Mining Laser Mining Laser Great Maul Great Maul Great Maul [Rating: 17] Favorites ----------- Power Cooled Ion Engine Engine Cooled Ion Engine Power Core Light Nuclear Core Propulsion Light Treads Treads Light Treads Utility Seismic Detector Device Seismic Detector Storage Large Storage Unit Processor Signal Interpreter Weapon Great Maul Energy Gun Small Laser Ballistic Gun Assault Rifle Launcher Grenade Launcher Impact Weapon Great Maul Build | -11 -10 -10 -9 -9 -9 ------- Run | Yrd Mat Min Mat Min Exi Slots Evolved 2 | . . . 2 . . Power . | . . . . . . Propulsion . | . . . . . . Utility 2 | . . . 2 . . Weapon . | . . . . . . Parts Attached 27 | 7 3 3 12 2 . Power 6 | 1 . 2 3 . . Engine 4 | 1 . . 3 . . Core 2 | . . 2 . . . Reactor . | . . . . . . Propulsion 6 | 2 1 . 3 . . Treads 6 | 2 1 . 3 . . Leg . | . . . . . . Wheel . | . . . . . . Hover . | . . . . . . Flight . | . . . . . . Utility 7 | 2 1 . 3 1 . Device 4 | 1 . . 2 1 . Storage 2 | 1 1 . . . . Processor 1 | . . . 1 . . Hackware . | . . . . . . Protection . | . . . . . . Artifact . | . . . . . . Weapon 8 | 2 1 1 3 1 . Energy Gun 3 | 1 . . 1 1 . Energy Cannon . | . . . . . . Ballistic Gun 1 | 1 . . . . . Ballistic Cannon . | . . . . . . Launcher 2 | . 1 1 . . . Special Weapon . | . . . . . . Impact Weapon 2 | . . . 2 . . Slashing Weapon . | . . . . . . Piercing Weapon . | . . . . . . Special Melee Weapon . | . . . . . . Unidentified Prototypes 1 | . . . 1 . . Parts Lost 21 | . . 7 4 . 10 Power 3 | . . 2 1 . . Propulsion 4 | . . 1 2 . 1 Utility 6 | . . 1 1 . 4 Weapon 8 | . . 3 . . 5 Highest Loss Streak 10 | . . 3 2 . 10 To Critical Strikes . | . . . . . . Average Backups 8 | 3 7 11 8 8 9 Power . | . . . . . . Propulsion 1 | 1 3 4 1 . 1 Utility 2 | . 2 4 3 2 2 Weapon 3 | . 2 3 4 6 6 Tool/Special . | . . . . . . Unused Backups 9 | . 3 . . 1 5 Power 1 | . 1 . . . . Propulsion 3 | . 2 . . . 1 Utility 2 | . . . . . 2 Weapon 3 | . . . . 1 2 Tool/Special . | . . . . . . Average Slot Usage (%) 92 | . 100 93 85 100 99 Engine 7 | . 14 . 6 11 11 Core 2 | . . 11 . . . Treads 23 | . 28 27 21 22 22 Device 16 | . 14 14 15 22 21 Storage 11 | . 14 14 11 11 11 Processor 7 | . . . 10 11 10 Energy Gun 7 | . 14 10 3 6 11 Ballistic Gun 3 | . 11 9 . . . Launcher 4 | . 2 3 6 4 . Impact Weapon 7 | . . . 10 11 11 Peak Build Rating 17 | 7 8 10 15 17 17 Average Rating 11 | 5 7 9 12 16 16 On Entrance 8 | . 7 8 3 14 17 Naked Turns . | . . . . . . Heaviest Build 37 | 12 28 30 36 37 37 Greatest Support 40 | 40 40 40 40 40 40 Greatest Overweight (x) 1 | . . 1 . . . Average Overweight (x) . | . . . . . . Largest Inventory Capacity 15 | 8 15 15 15 15 15 Average Capacity 13 | 7 10 15 15 15 15 Most Carried 12 | 6 11 12 11 10 9 Average Carried 8 | 3 7 11 8 8 9 Final Capacity 15 | 8 15 15 15 15 5 Final Carried 11 | 6 11 11 9 9 5 Class Distribution -------------------- 100% | Mutant Dominant Class ---------------- Mutant | -10/Materials Mutant | -10/Mines Mutant | -9/Materials Mutant | -9/Mines Mutant | -9/Exiles Resources | -11 -10 -10 -9 -9 -9 ----------- Run | Yrd Mat Min Mat Min Exi Matter Collected 807 | 366 40 . 332 69 . Remotely . | . . . . . . Salvage Created 1130 | 262 172 139 488 69 . Parts 69 | 21 12 10 25 1 . Haulers Intercepted 1 | . . . 1 . . Recyclers Shooed 2 | . 1 1 . . . Parts Field Recycled . | . . . . . . Retrieved Matter . | . . . . . . Parts Self-Destructed . | . . . . . . Prevented . | . . . . . . Kills | -11 -10 -10 -9 -9 -9 ------- Run | Yrd Mat Min Mat Min Exi Combat Hostiles Destroyed 29 | . 7 9 13 . . Melee 4 | . . . 4 . . Guns 8 | . 4 1 3 . . AOE 14 | . 3 8 3 . . Classes Destroyed 11 | 3 2 1 5 . . Worker 4 | 2 1 1 . . . Builder 2 | . . . 2 . . Tunneler 7 | 7 . . . . . Hauler 1 | . . . 1 . . Recycler 2 | 1 . . . 1 . Watcher 1 | . . . 1 . . Swarmer 7 | . 3 . 4 . . Grunt 13 | . 4 4 5 . . Duelist 1 | . . . 1 . . Sentry 3 | . . . 3 . . Assembled 5 | . . 5 . . . Best Kill Streak 4 | 4 4 4 4 1 . Combat Bots Only 4 | . 3 4 4 . . Max Kills in Single Turn 2 | 2 2 2 2 1 . Gunslinging . | . . . . . . Exploded 2 | . 2 2 2 . . Melee 1 | . . . 1 . . Uniques/NPCs Destroyed . | . . . . . . Combat | -11 -10 -10 -9 -9 -9 -------- Run | Yrd Mat Min Mat Min Exi Hostile Shots Fired 136 | . 20 36 80 . . Missed 33 | . 3 9 21 . . Hits 103 | . 17 27 59 . . Melee 2 | . . 2 . . . Projectile 101 | . 17 25 59 . . Critical Strikes 2 | . . . 2 . . Damage Taken 2653 | . 180 622 698 . 1153 Core 571 | . 11 130 121 . 309 Absorbed by Shields . | . . . . . . Core Remaining (%) 71 | 100 . 43 . . . Volleys Fired 83 | 32 16 16 19 . . Largest 2 | 2 2 2 1 . . Hottest 70 | 60 70 70 56 . . Shots Fired 133 | 61 32 21 19 . . Gun 113 | 61 26 9 17 . . Cannon . | . . . . . . Launcher 20 | . 6 12 2 . . Special . | . . . . . . Kinetic 45 | 32 10 3 . . . Thermal 68 | 29 16 6 17 . . Explosive 20 | . 6 12 2 . . Electromagnetic . | . . . . . . Robot Hit Streak 11 | 9 11 7 11 . . Robot Miss Streak 5 | 5 3 2 1 . . Penetration Max . | . . . . . . Secondary Targets . | . . . . . . Shots Hit Robots 103 | 34 19 14 35 1 . Core Hits 55 | 11 13 17 14 . . Critical Kills . | . . . . . . Critical Parts Destroyed 4 | . . . 4 . . Critical Strikes 7 | . . . 7 . . Burn 2 | . . . 2 . . Smash 5 | . . . 5 . . Melee Attacks 59 | . . . 29 1 29 Impact 59 | . . . 29 1 29 Slashing . | . . . . . . Piercing . | . . . . . . Sneak Attacks 3 | . . . 2 1 . Combat Hostiles . | . . . . . . Follow-up Attacks . | . . . . . . Damage Inflicted 2794 | 434 466 601 1234 59 . Guns 939 | 434 175 100 230 . . Cannons . | . . . . . . Explosions 910 | . 291 493 126 . . Melee 937 | . . . 878 59 . Ramming 8 | . . 8 . . . Kinetic 374 | 269 73 32 . . . Thermal 565 | 165 102 68 230 . . Explosive 910 | . 291 493 126 . . Electromagnetic . | . . . . . . Impact 937 | . . . 878 59 . Slashing . | . . . . . . Piercing . | . . . . . . Highest Corruption 17 | . . . . . 17 Average Corruption 7 | . . . . . 7 Corruption Purged . | . . . . . . Corruption Blocked . | . . . . . . Effects 1 | . . . . . 1 Message Errors 1 | . . . . . 1 Overload Shots . | . . . . . . Overflow Damage 367 | . . 48 300 19 . Projectiles . | . . . . . . Explosions 48 | . . 48 . . . Melee 319 | . . . 300 19 . Knockbacks 4 | . . . 4 . . Impact 4 | . . . 4 . . Kinetic . | . . . . . . Secondary . | . . . . . . Self-Inflicted Damage 247 | . 22 225 . . . Shots 7 | . 1 6 . . . Rammed 2 | . 1 1 . . . Targets Rammed 3 | . 1 2 . . . Kicked . | . . . . . . Crushed 1 | . . 1 . . . Highest Temperature 84 | . 84 73 72 . . Average Temperature 31 | . 36 30 28 . . Received Heat Transfer 398 | . 54 161 183 . . Siege Activations . | . . . . . . Martial Activations . | . . . . . . Shielding Activations . | . . . . . . Robots Disrupted . | . . . . . . Combat Hostiles . | . . . . . . Robots Corrupted 4 | . . . 4 . . Combat Hostiles 3 | . . . 3 . . Parts Fried 6 | . . . 5 1 . Impact Corruptions 12 | . . . 11 1 . Robots Melted . | . . . . . . Combat Hostiles . | . . . . . . Parts Melted 4 | . . . 4 . . Heat Transferred 1490 | 375 225 150 740 . . Parts Sabotaged . | . . . . . . Parts Stolen . | . . . . . . Parts Stripped . | . . . . . . Power Chain Reactions . | . . . . . . Alert | -11 -10 -10 -9 -9 -9 ------- Run | Yrd Mat Min Mat Min Exi Maximum Alert Level . | . . . . . . Low Security (%) 100 | 100 100 100 100 100 . Level 1 . | . . . . . . Level 2 . | . . . . . . Level 3 . | . . . . . . Level 4 . | . . . . . . Level 5 . | . . . . . . High Security . | . . . . . . Max Security . | . . . . . . Peak Influence 118 | 10 108 118 96 19 . Initial 37 | . . 37 19 19 . Average 28 | . 34 50 35 1 . Influence Increases 884 | 50 192 226 411 5 . Destroy 0b10 Robot/C 480 | . 140 80 260 . . Destroy 0b10 Robot/NC 85 | 50 5 5 20 5 . Destroy Leader 94 | . 20 20 54 . . Successful Hack 12 | . 4 . 8 . . Disable Machine 75 | . 15 45 15 . . Destroy Structure 93 | . 8 76 9 . . Lose Combat Pursuer 45 | . . . 45 . . Influence Decreases 884 | 50 94 273 412 55 . Entered New Map 124 | . . 61 32 31 . Time Decay 683 | 50 94 172 343 24 . Lost Part 77 | . . 40 37 . . Squads Dispatched 2 | . 1 . 1 . . Investigation 2 | . 1 . 1 . . Extermination . | . . . . . . Reinforcement . | . . . . . . Assault . | . . . . . . Garrison . | . . . . . . Intercept . | . . . . . . Searches Triggered . | . . . . . . Construction Impeded . | . . . . . . Haulers Reinforced . | . . . . . . Active Scanning Responses . | . . . . . . Cargo Convoy Interrupts . | . . . . . . Stealth | -11 -10 -10 -9 -9 -9 --------- Run | Yrd Mat Min Mat Min Exi Distress Signals . | . . . . . . Communications Jammed . | . . . . . . Distress Signals . | . . . . . . Times Spotted 40 | . 7 11 22 . . Peak Tracking Total 9 | . 3 6 4 . 9 Tactical Retreats 3 | . . 1 2 . . Traps | -11 -10 -10 -9 -9 -9 ------- Run | Yrd Mat Min Mat Min Exi Traps Triggered 3 | . 1 . 2 . . Indirectly . | . . . . . . Trap Hack Attempts . | . . . . . . Triggered . | . . . . . . Disarmed . | . . . . . . Reprogrammed . | . . . . . . Reused . | . . . . . . Traps Extracted . | . . . . . . Installed . | . . . . . . Triggered . | . . . . . . Machines | -11 -10 -10 -9 -9 -9 ---------- Run | Yrd Mat Min Mat Min Exi Machines Disabled 6 | . 1 3 1 . 1 Max in Single Turn 1 | . 1 1 1 . 1 Machines Repaired . | . . . . . . Machines Dismantled . | . . . . . . Machines Sabotaged . | . . . . . . Overloaded Fab Kills . | . . . . . . Hacking | -11 -10 -10 -9 -9 -9 --------- Run | Yrd Mat Min Mat Min Exi Machines Accessed 6 | . 1 . 5 . . Terminals 6 | . 1 . 5 . . Fabricators . | . . . . . . Repair Stations . | . . . . . . Recycling Units . | . . . . . . Scanalyzers . | . . . . . . Garrison Access . | . . . . . . Total Hacks 10 | . 3 . 7 . . Successful 8 | . 2 . 6 . . Failed 2 | . 1 . 1 . . Catastrophic . | . . . . . . Database Lockouts . | . . . . . . Manual 12 | . 4 . 8 . . Terminals 10 | . 3 . 7 . . Fabricators . | . . . . . . Repair Stations . | . . . . . . Recycling Units . | . . . . . . Scanalyzers . | . . . . . . Garrison Access . | . . . . . . Terminal Hacks . | . . . . . . Fabricator Hacks . | . . . . . . Repair Station Hacks . | . . . . . . Recycling Unit Hacks . | . . . . . . Scanalyzer . | . . . . . . Garrison Access Hacks . | . . . . . . Unauthorized Hacks 8 | . 2 . 6 . . Terminals 8 | . 2 . 6 . . Botnet 2 | . 1 . 1 . . Skim 6 | . 1 . 5 . . Fabricators . | . . . . . . Repair Stations . | . . . . . . Recycling Units . | . . . . . . Scanalyzers . | . . . . . . Garrison Access . | . . . . . . Data Cores Recovered . | . . . . . . Used . | . . . . . . Hacking Detections 3 | . 1 . 2 . . Full Trace Events . | . . . . . . Feedback Events . | . . . . . . Feedback Blocked . | . . . . . . Robot Schematics Acquired . | . . . . . . Robots Built . | . . . . . . Authchips . | . . . . . . Time . | . . . . . . Total Robot Build Rating . | . . . . . . Part Schematics Acquired . | . . . . . . Parts Built . | . . . . . . Authchips . | . . . . . . Time . | . . . . . . Total Part Build Rating . | . . . . . . Parts Repaired . | . . . . . . Time . | . . . . . . Parts Recycled . | . . . . . . Recycled Matter . | . . . . . . Retrieved Matter . | . . . . . . Retrieved Components . | . . . . . . Parts Scanalyzed . | . . . . . . Part Schematics Acquired . | . . . . . . Parts Damaged . | . . . . . . Bothacking | -11 -10 -10 -9 -9 -9 ------------ Run | Yrd Mat Min Mat Min Exi Used RIF Installer . | . . . . . . Robots Hacked . | . . . . . . Non-combat . | . . . . . . Combat . | . . . . . . Robot Hacks Applied . | . . . . . . Relay Couplers Released . | . . . . . . Fabnet Peak Effective % . | . . . . . . Robots Rewired . | . . . . . . Allies Hacked . | . . . . . . Hacks Repelled . | . . . . . . Allies | -11 -10 -10 -9 -9 -9 -------- Run | Yrd Mat Min Mat Min Exi Total Allies . | . . . . . . Largest Group . | . . . . . . Highest-Rated Group . | . . . . . . Highest-Rated Ally . | . . . . . . Total Orders . | . . . . . . Ally Attacks . | . . . . . . Total Damage . | . . . . . . Kills . | . . . . . . Allies Corrupted . | . . . . . . Allies Melted . | . . . . . . Intel | -11 -10 -10 -9 -9 -9 ------- Run | Yrd Mat Min Mat Min Exi Active Infowar (turns) 2583 | 135 269 456 1060 306 357 Sensors 474 | . . . 474 . . Terrain 654 | . . . . 306 348 Seismic 2583 | 135 269 456 1060 306 357 Robot Analysis Total . | . . . . . . Derelict Logs Recovered 3 | . . 1 . 2 . Drone Launches . | . . . . . . Drone Recoveries . | . . . . . . Exploration | -11 -10 -10 -9 -9 -9 ------------- Run | Yrd Mat Min Mat Min Exi Turns Passed 2832 | 369 269 458 1073 306 357 Spaces Moved 1318 | 164 128 252 417 187 170 Core 2 | 2 . . . . . Treads 1316 | 162 128 252 417 187 170 Legs . | . . . . . . Wheels . | . . . . . . Hover . | . . . . . . Flight . | . . . . . . Fastest Speed 50 | 50 160 160 160 160 160 Average Speed 160 | 158 160 160 160 160 160 Slowest Speed 240 | 160 160 240 160 160 160 Overloaded Moves . | . . . . . . Propulsion Burnouts . | . . . . . . Robots Hopped . | . . . . . . Potential Cave-ins 8 | . . . . . 8 Cave-ins Triggered 4 | . . . . . 4 Exploration Rate (%) 37 | 11 27 59 43 39 47 Regions Visited 5 Branch Regions 3 Pre-discovered Areas 2 | . . . 2 . . Known Exits Taken 2 | . . . 1 1 . Unknown Exits Taken 3 | 1 1 1 . . . Scrap Searched . | . . . . . . Spaces Dug 10 | . . . . . 10 Terrain Destroyed 127 | . 7 101 9 . 10 Melee 10 | . . . . . 10 Projectile . | . . . . . . AOE 117 | . 7 101 9 . . Terrain Rammed . | . . . . . . Walls Destroyed . | . . . . . . Machines Disabled . | . . . . . . Actions | -11 -10 -10 -9 -9 -9 --------- Run | Yrd Mat Min Mat Min Exi Total 1785 | 208 162 281 743 192 199 Wait 266 | . 2 6 258 . . Move 1313 | 163 127 251 416 186 170 Hop . | . . . . . . Pick Up 22 | 6 8 1 5 2 . Fast Attach 12 | 7 . 1 4 . . Attach 9 | . . 1 7 1 . Detach . | . . . . . . Swap 10 | . 3 2 4 1 . Drop 8 | . 5 1 1 1 . Fire 83 | 32 16 16 19 . . Melee 59 | . . . 29 1 29 Ram . | . . . . . . Kick . | . . . . . . Crush 3 | . 1 2 . . . Escape Stasis . | . . . . . . Rewire . | . . . . . . Trap . | . . . . . . Miscellaneous . | . . . . . . Route ------- -11/Scrapyard -10/Materials -10/Mines -9/Materials (discovered 5 exits: Mat x3 / *Min x2) -9/Mines (discovered 3 exits: Mat x2 / *Exi) -9/Exiles History --------- Turn | Location | Event 13 | -11/Scrapyard | Discovered new exit (range 15) 370 | -11/Scrapyard | Entered Materials 371 | -10/Materials | Build established: Mutant 538 | -10/Materials | Discovered new exit (range 14) 639 | -10/Materials | Entered Mines 781 | -10/Mines | Received a Rocket Launcher from a helpful Derelict 825 | -10/Mines | Assembled infested the area 1008 | -10/Mines | Lost 3 parts (1p2w) 1052 | -10/Mines | Discovered new exit (range 13) 1076 | -10/Mines | Learned Materials interactive machine intel 1079 | -10/Mines | Core integrity fell below 50% 1097 | -10/Mines | Entered Materials 1097 | -9/Materials | Evolved 2 slots: Utility x2 1098 | -9/Materials | Loaded intel: 17 interactive machine locations 1102 | -9/Materials | Discovered new exit (range 13) 1126 | -9/Materials | Lost 3 parts (1n1u1w) 1180 | -9/Materials | Identified exit to Mines 1819 | -9/Materials | Discovered exit to Mines (range 10) 1919 | -9/Materials | Learned location of Recycling (-7) 1964 | -9/Materials | Identified exit to Materials 2022 | -9/Materials | Learned 4 Materials zone layouts 2038 | -9/Materials | Loaded intel: 13 trap records 2069 | -9/Materials | Learned Storage trap positions 2170 | -9/Materials | Entered Mines 2184 | -9/Mines | Learned Materials terminal intel 2470 | -9/Mines | Deemed a non-threat by the Exiles lab entrance 2470 | -9/Mines | Discovered new exit (range 5) 2474 | -9/Mines | Identified exit to Exiles 2476 | -9/Mines | Entered Exiles 2516 | -9/Exiles | Met 8R-AWN 2544 | -9/Exiles | Met EX-HEX 2608 | -9/Exiles | Met EX-BIN 2638 | -9/Exiles | Met EX-DEC 2747 | -9/Exiles | Attacked by the Exiles 2824 | -9/Exiles | Crushed by falling debris 2824 | -9/Exiles | Core integrity fell below 50% 2833 | -9/Exiles | Crushed by falling debris 2833 | -9/Exiles | System corruption reached 10% 2834 | -9/Exiles | Crushed by falling debris 2834 | -9/Exiles | Crushed by falling debris 2834 | -9/Exiles | Smashed by cave-in Last Messages --------------- 02824_ System corrupted by crushing effect (+1). 02827_ QVNEEBP#EUGT4=/U9>| HLGUMMF,GABF AGZEQO 02833_ The unstable cave ceiling collapses. 02833_ Crushed by falling debris. 02833_ Seismic Detector destroyed. 02833_ System corrupted by crushing effect (+2). 02833_ Spread Laser destroyed. 02833_ System corrupted by crushing effect (+4). 02833_ Great Maul destroyed. 02833_ System corrupted by crushing effect (+5). 02834_ The unstable cave ceiling collapses. 02834_ Crushed by falling debris. 02834_ The unstable cave ceiling collapses. 02834_ Crushed by falling debris. 02834_ Lrg. Storage Unit destroyed. 02834_ Grenade Launcher crushed and broken. 02834_ Great Maul crushed and broken. 02834_ System corrupted by crushing effect (+5). 02834_ Lgt. Treads destroyed. 02834_ System corrupted by crushing effect (+2). Map ----- +----------------------------------------------------+ | | | | | | | | | | | | | | | | | | | | | | | | | | | | | | | | | | | | | | | | | | | | | | | | | | | ?????????????##?#?????###@#?????????###??????????? | | ???????????????#?????## ###??????????#???????????? | | ?????????????????????## #???????????###??????????? | | ??????????????????????# #???????#????#?#?????????? | | ??????????????????????###? ?????????????????????? | | ?????????????????????## ########????#????????????? | | ?????????????????????# # ##????????##??????? | | ???????????????????####### #?????????????????? | | ????????????????#????????# #????????#????????? | | ??????????????????#????#?# #???###???????????? | | ?????????????????????????# #??"""""??????????? | | ??????????????????#???#??# ## """??????????? | | ???????????#?#????#??#??## X""??????????? | | ???????????????#???#??#??# ## """????#?????? | | ???????????????????####??# ##?"""""??????????? | | ??????????????#??#?"""""?# #?#?###???????????? | | ?????????????#????"""" ## #?????????????????? | | ?????????????????#""X" #?#???????????????? | | ?????????????#?#?#" #?????????????????? | | ?????????????????#" ## #?????#???????????? | | ????????????????##""""""?# #?????????????????? | | ??????????????????#"###??# #?????????????????? | | ????????????????????????## #???""""??????????? | | ??????????????????????#??# #??"""""??????????? | | ?????????????????"???#??## ###"" """"????????? | +----------------------------------------------------+ Best States ------------- Heat Dissipation 28 Energy Generation 14 Energy Capacity 280 Matter Stores 300 Matter Capacity 300 Sight Range 16 Robot Scan Range 14 Terrain Scan Range 16 Terrain Scan Density 10 Evasion (%) 40 Recoil Reduction 2 Item Schematics ----------------- None Robot Schematics ------------------ None Fabricated ------------ Nothing Repaired ---------- Nothing Alien Tech Used ----------------- None Achievements -------------- None Challenges ------------ None Game ------ Seed DiametricDeepSteel Manual? 0 Play Time 00:14:43 Cumulative 113.6 hours Start 2025.05.24 @ 00:53:24 End 2025.05.24 @ 01:10:37 Sessions 1 Manual Loads 0 Difficulty Rogue Special Mode None Game No. 292 Rogue 292 Adventurer 0 Explorer 0 Win Type - Total 2 Types 2/0/0/0/0/0/0/0/0/0 Lore% 55 Gallery% 51 Achievement% 44 Wizard Run 0 Options --------- Layout 0 ASCII 0 Keyboard 0 Movement Numpad Keybinds 0 Fullscreen 2 Font 18/Terminus Map View 76x50 Zoom Use 0% Tactical HUD 1 Map Filters NONE Filters NONE Steam 1 RUN: 4ac7b1cd-094e-47c6-855e-8da0e9f5c438